fUSD/lending_fUSD_20251217
["ID","MTS","AMOUNT","RATE_DAILY","PERIOD"]
[398922520,1765998648464,-152.0,0.00023717,2]
[398922521,1765998648474,-152.0,0.00023717,2]
[398922522,1765998648485,-1254.0,0.00023717,2]
[398922523,1765998648494,-835.0,0.00023717,2]
[398922524,1765998648504,-152.0,0.00023717,2]
[398922525,1765998648514,-152.0,0.00023717,2]
[398922526,1765998648524,-1254.0,0.00023717,2]
[398922527,1765998648534,-835.0,0.00023717,2]
[398922528,1765998648544,-152.0,0.00023717,2]
[398922529,1765998648554,-152.0,0.00023717,2]
[398922530,1765998648564,-1254.0,0.00023717,2]
[398922531,1765998648573,-835.0,0.00023717,2]
[398922532,1765998648583,-152.0,0.00023717,2]
[398922533,1765998648593,-152.0,0.00023717,2]
[398922534,1765998648605,-835.0,0.00023717,2]
[398922535,1765998648615,-152.0,0.00023717,2]
[398922536,1765998648625,-1254.0,0.00023717,2]
[398922537,1765998648635,-152.0,0.00023717,2]
[398922538,1765998648645,-152.0,0.00023717,2]
[398922539,1765998648654,-835.0,0.00023717,2]
[398922540,1765998648665,-152.0,0.00023717,2]
[398922541,1765998648675,-1254.0,0.00023717,2]
[398922542,1765998648684,-152.0,0.00023717,2]
[398922543,1765998648694,-835.0,0.00023717,2]
[398922544,1765998648704,-152.0,0.00023717,2]
[398922545,1765998648714,-1254.0,0.00023717,2]
[398922546,1765998648724,-152.0,0.00023717,2]
[398922547,1765998648733,-835.0,0.00023717,2]
[398922548,1765998648744,-1254.0,0.00023717,2]
[398922549,1765998648754,-152.0,0.00023717,2]
[398922550,1765998648766,-152.0,0.00023717,2]
[398922551,1765998648775,-835.0,0.00023717,2]
[398922552,1765998648785,-1254.0,0.00023717,2]
[398922553,1765998648795,-152.0,0.00023717,2]
[398922554,1765998648804,-152.0,0.00023717,2]
[398922555,1765998648815,-835.0,0.00023717,2]
[398922556,1765998648825,-1254.0,0.00023717,2]
[398922557,1765998648835,-152.0,0.00023717,2]
[398922558,1765998648845,-152.0,0.00023717,2]
[398922559,1765998648857,-835.0,0.00023717,2]
[398922560,1765998648867,-1254.0,0.00023717,2]
[398922561,1765998648879,-152.0,0.00023717,2]
[398922562,1765998648900,-152.0,0.00023717,2]
[398922563,1765998648909,-835.0,0.00023717,2]
[398922564,1765998648919,-1254.0,0.00023717,2]
[398922565,1765998648929,-254.57359184,0.00023717,2]
[398922566,1765998648939,-153.0,0.00023717,2]
[398922567,1765998648949,-153.0,0.00023717,2]
[398922568,1765998648958,-153.0,0.00023717,2]
[398922569,1765998648968,-152.0,0.00023717,2]
[398922570,1765998648978,-1254.0,0.00023717,2]
[398922571,1765998648988,-153.0,0.00023717,2]
[398922572,1765998648998,-1254.0,0.00023717,2]
[398922573,1765998649008,-152.0,0.00023717,2]
[398922574,1765998649018,-153.0,0.00023717,2]
[398922575,1765998649028,-1254.0,0.00023717,2]
[398922576,1765998649038,-152.0,0.00023717,2]
[398922577,1765998649048,-153.0,0.00023717,2]
[398922578,1765998649058,-1254.0,0.00023717,2]
[398922579,1765998649068,-152.0,0.00023717,2]
[398922580,1765998649078,-153.0,0.00023717,2]
[398922581,1765998649088,-1254.0,0.00023717,2]
[398922582,1765998649098,-152.0,0.00023717,2]
[398922583,1765998649111,-153.0,0.00023717,2]
[398922584,1765998649121,-1254.0,0.00023717,2]
[398922585,1765998649451,-152.0,0.00023717,2]
[398922586,1765998649461,-153.0,0.00023717,2]
[398922587,1765998649471,-1254.0,0.00023717,2]
[398922588,1765998649480,-152.0,0.00023717,2]
[398922589,1765998649489,-153.0,0.00023717,2]
[398922590,1765998649499,-1254.0,0.00023717,2]
[398922591,1765998649508,-153.0,0.00023717,2]
[398922592,1765998649517,-152.0,0.00023717,2]
[398922593,1765998649527,-1254.0,0.00023717,2]
[398922594,1765998649536,-153.0,0.00023717,2]
[398922595,1765998649545,-152.0,0.00023717,2]
[398922596,1765998649554,-1254.0,0.00023717,2]
[398922597,1765998649564,-153.0,0.00023717,2]
[398922598,1765998649574,-282.05835074,0.00023717,2]
[398922599,1765998649583,-1254.0,0.00023717,2]
[398922600,1765998649592,-153.0,0.00023717,2]
[398922601,1765998649601,-1254.0,0.00023717,2]
[398922602,1765998649613,-153.0,0.00023717,2]
[398922603,1765998649622,-471.59604234,0.00023717,2]
[398922604,1765998649632,-153.0,0.00023717,2]
[398922605,1765998649641,-238.61888056,0.00023717,2]
[398922606,1765998649651,-153.0,0.00023717,2]
[398922607,1765998649660,-153.0,0.00023717,2]
[398922608,1765998649669,-153.0,0.00023717,2]
[398922609,1765998649678,-153.0,0.00023717,2]
[398922610,1765998649687,-284.0,0.00023717,2]
[398922611,1765998649697,-150.0,0.00023732,4]
[398922612,1765998649707,-150.0,0.00023732,4]
[398922613,1765998649716,-150.0,0.00023751,4]
[398922614,1765998649726,-150.0,0.00023755,4]
[398922615,1765998649736,-150.0,0.00023757,4]
[398922616,1765998649746,-150.0,0.00023757,4]
[398922617,1765998649755,-150.0,0.00023758,4]
[398922618,1765998649764,-150.0,0.00023761,4]
[398922619,1765998649774,-150.0,0.00023764,4]
[398922620,1765998649783,-150.0,0.00023766,4]
[398922621,1765998649792,-150.0,0.00023787,4]
[398922622,1765998649802,-150.0,0.00023795,4]
[398922623,1765998649811,-150.0,0.00023796,4]
[398922624,1765998649819,-150.0,0.00023803,4]
[398922625,1765998649829,-150.0,0.00023814,4]
[398922626,1765998649838,-150.0,0.00023814,4]
[398922627,1765998649848,-577.0,0.00023822,60]
[398922628,1765998649859,-500.0,0.00023822,60]
[398922629,1765998649869,-150.0,0.00023827,4]
[398922630,1765998649879,-150.0,0.00023829,4]
[398922631,1765998649888,-150.0,0.00023835,4]
[398922632,1765998649898,-150.0,0.00023841,4]
[398922633,1765998649907,-150.0,0.00023848,4]
[398922634,1765998649916,-150.0,0.00023861,4]
[398922635,1765998649926,-150.0,0.00023865,4]
[398922636,1765998649935,-150.0,0.00023872,4]
[398922637,1765998649944,-150.0,0.00023872,4]
[398922638,1765998649954,-150.0,0.00023875,4]
[398922639,1765998649962,-150.0,0.00023881,4]
[398922640,1765998649972,-150.0,0.00023887,4]
[398922641,1765998649981,-150.0,0.00023893,4]
[398922642,1765998649990,-150.0,0.00023893,4]
[398922643,1765998650000,-359.76179104,0.00023902,2]
[398922644,1765998650009,-150.0,0.00023909,4]
[398922645,1765998650018,-150.0,0.00023915,4]
[398922646,1765998650027,-150.0,0.00023925,4]
[398922647,1765998650037,-150.0,0.0002393,4]
[398922648,1765998650047,-150.0,0.0002393,4]
[398922649,1765998650056,-150.0,0.00023938,4]
[398922650,1765998650066,-150.0,0.00023942,4]
[398922651,1765998650076,-150.0,0.00023948,4]
[398922652,1765998650085,-150.0,0.00023955,4]
[398922653,1765998650094,-150.0,0.00023957,4]
[398922654,1765998650104,-577.0,0.00023959,60]
[398922655,1765998650114,-500.0,0.00023959,60]
[398922656,1765998650124,-150.0,0.00023968,4]
[398922657,1765998650134,-150.0,0.00023968,4]
[398922658,1765998650143,-150.0,0.00023968,4]
[398922659,1765998650153,-150.0,0.00023983,4]
[398922660,1765998650162,-150.0,0.00023987,4]
[398922661,1765998650172,-150.0,0.00023987,4]
[398922662,1765998650181,-150.0,0.0002399,4]
[398922663,1765998650190,-150.0,0.00023995,4]
[398922664,1765998650199,-150.0,0.00024008,4]
[398922665,1765998650208,-150.0,0.00024012,4]
[398922666,1765998650218,-150.0,0.0002402,4]
[398922667,1765998650228,-150.0,0.00024022,4]
[398922668,1765998650237,-150.0,0.00024028,4]
[398922669,1765998650247,-150.0,0.00024032,4]
[398922670,1765998650256,-150.0,0.00024035,4]
[398922671,1765998650266,-150.0,0.00024045,4]
[398922672,1765998650276,-150.0,0.00024045,4]
[398922673,1765998650285,-150.0,0.00024054,4]
[398922674,1765998650295,-150.0,0.00024069,4]
[398922675,1765998650304,-150.0,0.00024073,4]
[398922676,1765998650313,-150.0,0.00024075,4]
[398922677,1765998650322,-150.0,0.00024086,4]
[398922678,1765998650331,-150.0,0.00024086,4]
[398922679,1765998650345,-577.0,0.00024096,60]
[398922680,1765998650354,-500.0,0.00024096,60]
[398922681,1765998650366,-150.0,0.00024097,4]
[398922682,1765998650375,-150.0,0.00024103,4]
[398922683,1765998650386,-150.0,0.00024103,4]
[398922684,1765998650395,-150.0,0.00024115,4]
[398922685,1765998650405,-823.42,0.00024118,2]
[398922686,1765998650415,-150.0,0.00024118,4]
[398922687,1765998650427,-150.0,0.00024118,4]
[398922688,1765998650437,-612.0,0.00024119,2]
[398922689,1765998650446,-1607.0,0.00024119,2]
[398922690,1765998650455,-1325.0,0.00024119,2]
[398922691,1765998650465,-150.0,0.00024129,4]
[398922692,1765998650474,-2258.0,0.00024137,2]
[398922693,1765998650484,-150.0,0.00024142,4]
[398922694,1765998650493,-150.0,0.00024151,4]
[398922695,1765998650502,-150.0,0.00024155,4]
[398922696,1765998650512,-150.0,0.0002416,4]
[398922697,1765998650521,-150.0,0.0002416,4]
[398922698,1765998650531,-150.0,0.00024163,4]
[398922699,1765998650540,-150.0,0.00024175,4]
[398922700,1765998650549,-150.0,0.00024175,4]
[398922701,1765998650560,-150.0,0.00024183,4]
[398922702,1765998650569,-150.0,0.0002419,4]
[398922703,1765998650578,-150.0,0.00024195,4]
[398922704,1765998650587,-150.0,0.00024208,4]
[398922705,1765998650597,-150.0,0.00024215,4]
[398922706,1765998650608,-150.0,0.00024218,4]
[398922707,1765998650618,-150.0,0.00024218,4]
[398922708,1765998650627,-150.0,0.00024222,4]
[398922709,1765998650637,-577.0,0.00024233,60]
[398922710,1765998650647,-463.17870048,0.00024233,60]
[398922711,1765998650657,-150.0,0.00024235,4]
[398922712,1765998650665,-150.0,0.00024247,4]
[398922713,1765998650675,-150.0,0.0002425,4]
[398922714,1765998650684,-150.0,0.00024252,4]
[398922715,1765998650693,-150.0,0.00024254,4]
[398922716,1765998650702,-150.0,0.00024263,4]
[398922717,1765998650711,-150.0,0.00024273,4]
[398922718,1765998650720,-150.0,0.00024275,4]
[398922719,1765998650729,-150.0,0.00024276,4]
[398922720,1765998650739,-150.0,0.00024276,4]
[398922721,1765998650748,-150.0,0.00024279,4]
[398922722,1765998650757,-150.0,0.00024299,4]
[398922723,1765998650766,-150.0,0.00024311,4]
[398922724,1765998650775,-150.0,0.00024312,4]
[398922725,1765998650785,-150.0,0.00024315,4]
[398922726,1765998650795,-564.0,0.00024315,2]
[398922727,1765998650804,-1261.0,0.00024315,2]
[398922728,1765998650813,-2427.0,0.00024315,2]
[398922729,1765998650823,-380.105,0.00024315,2]
[398922730,1765998650831,-563.0,0.00024315,2]
[398922731,1765998650841,-150.0,0.0002433,4]
[398922732,1765998650850,-150.0,0.00024333,4]
[398922733,1765998650861,-150.0,0.00024333,4]
[398922734,1765998650871,-150.0,0.00024344,4]
[398922735,1765998650879,-150.0,0.00024344,4]
[398922736,1765998650889,-150.0,0.00024355,4]
[398922737,1765998650898,-577.0,0.0002437,60]
[398922738,1765998650907,-150.0,0.00024371,4]
[398922739,1765998650917,-150.0,0.00024376,4]
[398922740,1765998650926,-150.0,0.00024381,4]
[398922741,1765998650936,-150.0,0.00024381,4]
[398922742,1765998650945,-150.0,0.00024389,4]
[398922743,1765998650954,-150.0,0.00024391,4]
[398922744,1765998650964,-150.0,0.00024391,4]
[398922745,1765998650973,-150.0,0.00024395,4]
[398922746,1765998650983,-2000.0,0.000244,2]
[398922747,1765998650992,-150.0,0.00024403,4]
[398922748,1765998651003,-150.0,0.00024407,4]
[398922749,1765998651014,-150.0,0.00024408,4]
[398922750,1765998651023,-150.0,0.00024413,4]
[398922751,1765998651033,-150.0,0.00024432,4]
[398922752,1765998651043,-150.0,0.00024434,4]
[398922753,1765998651053,-150.0,0.00024435,4]
[398922754,1765998651062,-150.0,0.0002444,4]
[398922755,1765998651073,-150.0,0.0002444,4]
[398922756,1765998651084,-150.0,0.00024449,4]
[398922757,1765998651095,-150.0,0.00024449,4]
[398922758,1765998651106,-150.0,0.00024473,4]
[398922759,1765998651121,-150.0,0.00024475,4]
[398922760,1765998651131,-150.0,0.00024479,4]
[398922761,1765998651141,-150.0,0.00024485,4]
[398922762,1765998651151,-150.0,0.00024492,4]
[398922763,1765998651162,-150.0,0.00024505,4]
[398922764,1765998651172,-150.0,0.00024506,4]
[398922765,1765998651183,-150.0,0.00024506,4]
[398922766,1765998651194,-577.0,0.00024507,60]
[398922767,1765998651205,-150.0,0.00024515,4]
[398922768,1765998651216,-150.0,0.00024524,4]
[398922769,1765998651226,-150.0,0.00024534,4]
[398922770,1765998651236,-150.0,0.00024537,4]
[398922771,1765998651245,-150.0,0.00024553,4]
[398922772,1765998651256,-150.0,0.00024555,4]
[398922773,1765998651266,-150.0,0.00024562,4]
[398922774,1765998651277,-150.0,0.00024564,4]
[398922775,1765998651287,-150.0,0.00024564,4]
[398922776,1765998651297,-150.0,0.00024569,4]
[398922777,1765998651306,-150.0,0.00024569,4]
[398922778,1765998651316,-150.0,0.00024588,4]
[398922779,1765998651326,-150.0,0.00024595,4]
[398922780,1765998651336,-150.0,0.00024601,4]
[398922781,1765998651346,-150.0,0.00024604,4]
[398922782,1765998651362,-150.0,0.00024613,4]
[398922783,1765998651372,-150.0,0.00024614,4]
[398922784,1765998651382,-150.0,0.00024617,4]
[398922785,1765998651393,-150.0,0.00024622,4]
[398922786,1765998651402,-150.0,0.00024622,4]
[398922787,1765998651411,-150.0,0.00024634,4]
[398922788,1765998651421,-150.0,0.00024635,4]
[398922789,1765998651431,-150.0,0.0002464,4]
[398922790,1765998651442,-577.0,0.00024644,60]
[398922791,1765998651452,-500.0,0.00024658,2]
[398922792,1765998651461,-1000.0,0.00024658,2]
[398922793,1765998651471,-1307.53,0.00024658,30]
[398922794,1765998651481,-600.0,0.00024658,7]
[398922795,1765998651491,-600.0,0.00024658,7]
[398922796,1765998651501,-600.0,0.00024658,4]
[398922797,1765998651511,-600.0,0.00024658,7]
[398922798,1765998651521,-600.0,0.00024658,3]
[398922799,1765998651530,-600.0,0.00024658,6]
[398922800,1765998651540,-600.0,0.00024658,5]
[398922801,1765998651550,-600.0,0.00024658,5]
[398922802,1765998651561,-600.0,0.00024658,6]
[398922803,1765998651571,-600.0,0.00024658,4]
[398922804,1765998651582,-600.0,0.00024658,6]
[398922805,1765998651592,-600.0,0.00024658,5]
[398922806,1765998651603,-600.0,0.00024658,4]
[398922807,1765998651617,-600.0,0.00024658,4]
[398922808,1765998651627,-600.0,0.00024658,3]
[398922809,1765998651637,-600.0,0.00024658,6]
[398922810,1765998651647,-600.0,0.00024658,3]
[398922811,1765998651656,-600.0,0.00024658,3]
[398922812,1765998651666,-600.0,0.00024658,4]
[398922813,1765998651675,-600.0,0.00024658,4]
[398922814,1765998651686,-600.0,0.00024658,6]
[398922815,1765998651695,-600.0,0.00024658,7]
[398922816,1765998651704,-600.0,0.00024658,7]
[398922817,1765998651713,-600.0,0.00024658,7]
[398922818,1765998651723,-600.0,0.00024658,4]
[398922819,1765998651732,-600.0,0.00024658,7]
[398922820,1765998651741,-600.0,0.00024658,6]
[398922821,1765998651871,-600.0,0.00024658,2]
[398922822,1765998651881,-600.0,0.00024658,7]
[398922823,1765998651891,-600.0,0.00024658,2]
[398922824,1765998651901,-600.0,0.00024658,2]
[398922825,1765998651911,-600.0,0.00024658,4]
[398922826,1765998651921,-600.0,0.00024658,3]
[398922827,1765998651930,-600.0,0.00024658,3]
[398922828,1765998651940,-500.0,0.00024658,2]
[398922829,1765998651950,-351.8957201,0.00024658,2]
[398922830,1765998651959,-150.0,0.00024659,4]
[398922831,1765998651969,-150.0,0.00024664,4]
[398922832,1765998651979,-150.0,0.00024666,4]
[398922833,1765998651991,-150.0,0.00024674,4]
[398922834,1765998652000,-150.0,0.00024675,4]
[398922835,1765998652010,-150.0,0.00024679,4]
[398922836,1765998652019,-150.0,0.00024679,4]
[398922837,1765998652029,-150.0,0.00024698,4]
[398922838,1765998652038,-518.46715855,0.000247,2]
[398922839,1765998652048,-150.0,0.00024704,4]
[398922840,1765998652057,-150.0,0.00024715,4]
[398922841,1765998652067,-150.0,0.00024717,4]
[398922842,1765998652076,-150.0,0.0002473,4]
[398922843,1765998652086,-150.0,0.00024734,4]
[398922844,1765998652096,-150.0,0.00024737,4]
[398922845,1765998652105,-150.0,0.00024737,4]
[398922846,1765998652119,-150.0,0.00024749,4]
[398922847,1765998652128,-150.0,0.00024755,4]
[398922848,1765998652137,-150.0,0.00024762,4]
[398922849,1765998652147,-577.0,0.00024781,60]
[398922850,1765998652156,-150.0,0.00024795,4]
[398922851,1765998652165,-150.0,0.00024795,4]
[398922852,1765998652175,-150.0,0.00024795,4]
[398922853,1765998652184,-179.90570441,0.00024795,4]
[398922854,1765998652193,-259.27927663,0.00024795,4]
[398922855,1765998652203,-151.17525831,0.00024795,4]
[398922856,1765998652212,-150.00000001,0.00024795,4]
[398922857,1765998652222,-150.65844905,0.00024795,4]
[398922858,1765998652231,-150.00000001,0.00024795,4]
[398922859,1765998652240,-150.91550183,0.00024795,4]
[398922860,1765998652249,-153.15599333,0.00024795,4]
[398922861,1765998652258,-150.00000001,0.00024795,4]
[398922862,1765998652267,-151.0803606,0.00024795,4]
[398922863,1765998652277,-150.0,0.00024795,4]
[398922864,1765998652287,-500.0,0.00024799,2]
[398922865,1765998652296,-823.42,0.00024799,2]
[398922866,1765998652306,-823.42,0.00024799,2]
[398922867,1765998652315,-151.0,0.000248,7]
[398922868,1765998652326,-151.0,0.000248,7]
[398922869,1765998652338,-9523.83814419,0.000248,2]
[398922870,1765998652358,-180.561774,0.000248,7]
[398922871,1765998652367,-180.561774,0.000248,7]
[398922872,1765998652377,-180.561774,0.000248,7]
[398922873,1765998652386,-180.561774,0.000248,7]
[398922874,1765998652395,-601663.834532,0.000248,3]
[398922875,1765998652405,-151.0,0.000248,7]
[398922876,1765998652414,-151.0,0.000248,7]
[398922877,1765998652423,-151.0,0.000248,7]
[398922878,1765998652432,-220.820508,0.000248,7]
[398922879,1765998652442,-13296.18727066,0.000248,2]
[398922880,1765998652451,-151.0,0.000248,7]
[398922881,1765998652460,-151.0,0.000248,7]
[398922882,1765998652469,-243.020018,0.000248,7]
[398922883,1765998652479,-243.020018,0.000248,7]
[398922884,1765998652488,-243.020018,0.000248,7]
[398922885,1765998652498,-243.020018,0.000248,7]
[398922886,1765998652507,-151.0,0.000248,7]
[398922887,1765998652517,-150.0,0.00024873,2]
[398922888,1765998652526,-150.0,0.00024873,2]
[398922889,1765998652536,-823.42,0.00024899,2]
[398922890,1765998652545,-823.42,0.00024899,2]
[398922891,1765998652555,-823.42,0.00024899,2]
[398922892,1765998652564,-823.42,0.00024899,2]
[398922893,1765998652572,-823.46,0.00024899,2]
[398922894,1765998652581,-151.0,0.000249,7]
[398922895,1765998652590,-151.0,0.000249,2]
[398922896,1765998652599,-151.0,0.000249,2]
[398922897,1765998652608,-151.0,0.000249,7]
[398922898,1765998652617,-225.844093,0.000249,7]
[398922899,1765998652627,-225.844093,0.000249,7]
[398922900,1765998652636,-225.844093,0.000249,7]
[398922901,1765998652646,-225.844093,0.000249,7]
[398922902,1765998652656,-12832.4102191,0.000249,3]
[398922903,1765998652666,-577.0,0.00024918,60]
[398922904,1765998652676,-361.8946694,0.00025008,2]
[398922905,1765998652686,-263.35119732,0.0002501,2]
[398922906,1765998652696,-151.0,0.00025052,7]
[398922907,1765998652706,-577.0,0.00025055,60]
[398922908,1765998652715,-577.0,0.00025192,60]
[398922909,1765998652724,-1680.76,0.000252,7]
[398922910,1765998652743,-373.07297731,0.00025271,2]
[398922911,1765998652754,-577.0,0.00025329,60]
[398922912,1765998652763,-577.0,0.00025466,60]
[398922913,1765998652773,-577.0,0.00025603,60]
[398922914,1765998652782,-577.0,0.0002574,60]
[398922915,1765998652792,-581.64616008,0.00025877,60]
[398922916,1765998652802,-1651.0,0.00026445,2]
[398922917,1765998652812,-386.87667747,0.0002664,2]
[398922918,1765998652822,-563.84,0.00026676,2]
[398922919,1765998652832,-2760.318255,0.00027,2]
[398922920,1765998652842,-612.0,0.00027119,2]
[398922921,1765998652852,-1607.0,0.00027119,2]
[398922922,1765998652863,-1325.0,0.00027119,2]
[398922923,1765998652873,-564.0,0.00027315,2]
[398922924,1765998652883,-1261.0,0.00027315,2]
[398922925,1765998652894,-2427.0,0.00027315,2]
[398922926,1765998652905,-150.0,0.00027369,2]
[398922927,1765998652915,-500.0,0.00027397,14]
[398922928,1765998652925,-300.0,0.00027397,2]
[398922929,1765998652935,-151.0,0.00027397,7]
[398922930,1765998652945,-151.0,0.00027397,7]
[398922931,1765998652955,-151.0,0.00027397,7]
[398922932,1765998652964,-151.0,0.00027397,7]
[398922933,1765998652973,-549.26830611,0.00027397,5]
[398922934,1765998652983,-518.46715855,0.0002754,2]
[398922935,1765998652993,-500.0,0.00027562,2]
[398922936,1765998653003,-9268.51,0.00027671,2]
[398922937,1765998653012,-1680.76,0.000277,7]
[398922938,1765998653022,-224.91,0.000279,14]
[398922939,1765998653031,-453.02407209,0.000279,2]
[398922940,1765998653041,-401.19111454,0.00028009,2]
[398922941,1765998653051,-2000.0,0.000281,2]
[398922942,1765998653061,-416.03518578,0.00029378,2]
[398922943,1765998653071,-832.73871045,0.00029391,2]
[398922944,1765998653080,-1307.53,0.00029492,30]
[398922945,1765998653091,-612.0,0.00030119,2]
[398922946,1765998653105,-1607.0,0.00030119,2]
[398922947,1765998653117,-1325.0,0.00030119,2]
[398922948,1765998653127,-800.0,0.00030137,16]
[398922949,1765998653137,-800.0,0.00030137,21]
[398922950,1765998653146,-800.0,0.00030137,28]
[398922951,1765998653156,-800.0,0.00030137,16]
[398922952,1765998653166,-800.0,0.00030137,30]
[398922953,1765998653176,-800.0,0.00030137,22]
[398922954,1765998653186,-800.0,0.00030137,26]
[398922955,1765998653195,-800.0,0.00030137,20]
[398922956,1765998653205,-800.0,0.00030137,16]
[398922957,1765998653216,-800.0,0.00030137,27]
[398922958,1765998653226,-800.0,0.00030137,22]
[398922959,1765998653236,-800.0,0.00030137,26]
[398922960,1765998653246,-800.0,0.00030137,26]
[398922961,1765998653255,-800.0,0.00030137,16]
[398922962,1765998653265,-800.0,0.00030137,18]
[398922963,1765998653275,-800.0,0.00030137,23]
[398922964,1765998653285,-800.0,0.00030137,23]
[398922965,1765998653295,-800.0,0.00030137,22]
[398922966,1765998653304,-800.0,0.00030137,26]
[398922967,1765998653314,-800.0,0.00030137,31]
[398922968,1765998653323,-800.0,0.00030137,23]
[398922969,1765998653333,-800.0,0.00030137,25]
[398922970,1765998653348,-800.0,0.00030137,23]
[398922971,1765998653360,-800.0,0.00030137,19]
[398922972,1765998653369,-800.0,0.00030137,26]
[398922973,1765998653379,-800.0,0.00030137,30]
[398922974,1765998653389,-800.0,0.00030137,23]
[398922975,1765998653399,-800.0,0.00030137,26]
[398922976,1765998653410,-800.0,0.00030137,20]
[398922977,1765998653421,-800.0,0.00030137,20]
[398922978,1765998653431,-800.0,0.00030137,25]
[398922979,1765998653441,-800.0,0.00030137,31]
[398922980,1765998653451,-800.0,0.00030137,26]
[398922981,1765998653461,-179.81,0.000302,30]
[398922982,1765998653472,-564.0,0.00030315,2]
[398922983,1765998653486,-1261.0,0.00030315,2]
[398922984,1765998653497,-2427.0,0.00030315,2]
[398922985,1765998653508,-518.46715855,0.0003038,2]
[398922986,1765998653518,-2046.94753656,0.00030588,2]
[398922987,1765998653527,-1680.76,0.000306,7]
[398922988,1765998653537,-431.42848765,0.00030747,2]
[398922989,1765998653547,-2000.0,0.000318,2]
[398922990,1765998653557,-447.3913417,0.00032116,2]
[398922991,1765998653567,-153.0,0.0003232,2]
[398922992,1765998653577,-1806.07763121,0.00032724,2]
[398922993,1765998653588,-151.0,0.00032877,31]
[398922994,1765998653601,-151.0,0.00032877,31]
[398922995,1765998653616,-151.0,0.00032877,31]
[398922996,1765998653627,-151.0,0.00032877,31]
[398922997,1765998653636,-151.0,0.00032877,31]
[398922998,1765998653647,-151.0,0.00032877,31]
[398922999,1765998653656,-229.047682,0.00032877,31]
[398923000,1765998653666,-151.0,0.00032877,31]
[398923001,1765998653676,-151.0,0.00032877,31]
[398923002,1765998653686,-151.0,0.00032877,31]
[398923003,1765998653697,-151.0,0.00032877,31]
[398923004,1765998653707,-151.0,0.00032877,31]
[398923005,1765998653717,-151.0,0.00032877,31]
[398923006,1765998653727,-295.608226,0.00032877,31]
[398923007,1765998653736,-151.0,0.00032877,31]
[398923008,1765998653746,-151.0,0.00032877,31]
[398923009,1765998653755,-151.0,0.00032877,31]
[398923010,1765998653764,-175.710194,0.00032877,31]
[398923011,1765998653774,-151.0,0.00032877,31]
[398923012,1765998653784,-160.004932,0.00032877,31]
[398923013,1765998653793,-151.0,0.00032877,31]
[398923014,1765998653802,-158.511192,0.00032877,31]
[398923015,1765998653812,-151.0,0.00032877,31]
[398923016,1765998653822,-151.0,0.00032877,31]
[398923017,1765998653831,-151.0,0.00032877,31]
[398923018,1765998653841,-151.0,0.00032877,31]
[398923019,1765998653855,-151.0,0.00032877,31]